[Event "FIDE World Rapid-ch Open 2018"]
[White "Jumabayev, Rinat"]
[Black "Dreev, Aleksey"]
[Site "St. Petersburg"]
[Round "5.32"]
[Annotator "RC"]
[Result "1-0"]
[Date "2018.12.26"]
[WhiteElo "2602"]
[BlackElo "2670"]
[PlyCount "177"]
[TimeControl "900+10"]

1. e4 {[%emt 0:0:0]} c6 {[%emt 0:0:0]} 2. d4 {[%emt 0:0:0]} d5 {[%emt 0:0:0]} 3. exd5 {[%emt 0:0:0]} cxd5 {[%emt 0:0:0]} 4. Bd3 {[%emt 0:0:0]} Nc6 {[%emt 0:0:0]} 5. c3 {[%emt 0:0:0]} Qc7 {[%emt 0:0:0]} 6. h3 {[%emt 0:0:25]
} g6 {[%emt 0:0:13]} 7. Nf3 {[%emt 0:0:2]} Bg7 {[%emt 0:0:6]
} 8. 0-0 {[%emt 0:0:3]} Nh6 {[%emt 0:0:8]} 9. Re1 {[%emt 0:0:6]} 0-0 {[%emt 0:0:10]
} 10. Na3 {[%emt 0:1:42]} a6 {[%emt 0:0:20]} 11. Nc2 {[%emt 0:0:0]} Bf5 {[%emt 0:2:51]} 12. Ne3 {[%emt 0:0:41]} Bxd3 {[%emt 0:0:8]} 13. Qxd3 {[%emt 0:0:1]} Rad8 {[%emt 0:0:12]} 14. a4 {[%emt 0:0:39]} Qd7 {[%emt 0:2:23]
} 15. Bd2 {[%emt 0:0:43]} Rfe8 {[%emt 0:1:3]} 16. a5 {[%emt 0:0:0]} Nf5 {[%emt 0:1:56]} 17. Nxf5 {[%emt 0:0:56]} Qxf5 {[%emt 0:0:2]} 18. Qxf5 {[%emt 0:0:36]} gxf5 {[%emt 0:0:1]} 19. Bf4 {[%emt 0:0:1]} h5 {[%emt 0:1:38]
} 20. Bc7 {[%emt 0:2:20]} Rc8 {[%emt 0:0:25]} 21. Bb6 {[%emt 0:0:0]} e6 {[%emt 0:0:55]} 22. Re2 {[%emt 0:0:5]} Nb8 {[%emt 0:0:49]} 23. Bc5 {[%emt 0:0:4]} Nd7 {[%emt 0:0:11]} 24. Bb4 {[%emt 0:0:2]} f6 {[%emt 0:0:0]} 25. Ne1 {[%emt 0:0:58]} Kf7 {[%emt 0:0:17]} 26. Nd3 {[%emt 0:0:22]} Bh6 {[%emt 0:0:42]} 27. Rae1 {[%emt 0:0:12]} Rc6 {[%emt 0:0:4]} 28. h4 {[%emt 0:0:34]
} Rg8 {[%emt 0:0:47]} 29. f3 {[%emt 0:0:2]} Re8 {[%emt 0:0:0]} 30. Kf2 {[%emt 0:0:57]} Rc4 {[%emt 0:0:46]} 31. Bd6 {[%emt 0:0:44]} Rcc8 {[%emt 0:0:36]} 32. Bg3 {[%emt 0:1:16]} Rc4 {[%emt 0:0:25]} 33. Bd6 {[%emt 0:0:38]
} Rcc8 {[%emt 0:0:5]} 34. Kf1 {[%emt 0:0:1]} Rc6 {[%emt 0:0:0]} 35. Bg3 {[%emt 0:0:2]} Rc4 {[%emt 0:0:11]} 36. Nb4 {[%emt 0:0:17]} Rcc8 {[%emt 0:0:8]} 37. Bd6 {[%emt 0:0:14]} Nf8 {[%emt 0:0:44]} 38. Kf2 {[%emt 0:0:45]
} Ng6 {[%emt 0:0:5]} 39. Nd3 {[%emt 0:0:6]} Rc6 {[%emt 0:0:0]} 40. Bh2 {[%emt 0:1:7]} Bf8 {[%emt 0:0:1]} 41. Bf4 {[%emt 0:0:26]} Rc4 {[%emt 0:0:11]} 42. g3 {[%emt 0:0:14]} Rc6 {[%emt 0:0:3]} 43. Ra1 {[%emt 0:0:0]} Rc4 {[%emt 0:0:2]} 44. Bd2 {[%emt 0:1:8]} e5 {[%emt 0:0:17]} 45. Rae1 {[%emt 0:0:59]} Bd6 {[%emt 0:0:3]} 46. f4 {[%emt 0:0:36]} e4 {[%emt 0:0:0]} 47. Nc1 {[%emt 0:0:1]} Ne7 {[%emt 0:0:15]} 48. Nb3 {[%emt 0:0:23]} Rcc8 {[%emt 0:0:7]} 49. Na1 {[%emt 0:0:19]} Nc6 {[%emt 0:0:6]} 50. Nb3 {[%emt 0:0:1]
} Rg8 {[%emt 0:0:5]} 51. Ra1 {[%emt 0:0:2]} Rg7 {[%emt 0:0:0]} 52. Ree1 {[%emt 0:0:21]} Rcg8 {[%emt 0:0:9]} 53. Rg1 {[%emt 0:0:1]} Ke6 {[%emt 0:0:3]} 54. Be3 {[%emt 0:0:3]} Rb8 {[%emt 0:0:35]} 55. Ra2 {[%emt 0:0:6]
} Nd8 {[%emt 0:0:32]} 56. Nd2 {[%emt 0:0:28]} Rc7 {[%emt 0:0:0]} 57. Ke2 {[%emt 0:0:4]} Nf7 {[%emt 0:0:11]} 58. Rc1 {[%emt 0:0:2]} Rbc8 {[%emt 0:0:5]} 59. Nf1 {[%emt 0:0:6]} Be7 {[%emt 0:0:7]} 60. Bd2 {[%emt 0:0:23]
} Nd6 {[%emt 0:0:1]} 61. Ne3 {[%emt 0:0:1]} Rg8 {[%emt 0:0:0]} 62. Be1 {[%emt 0:0:0]} Rgc8 {[%emt 0:0:2]} 63. Kd1 {[%emt 0:0:4]} Bd8 {[%emt 0:0:17]} 64. Ra4 {[%emt 0:0:31]} Rc6 {[%emt 0:0:17]} 65. b3 {[%emt 0:0:9]
} Nb5 {[%emt 0:0:12]} 66. c4 {[%emt 0:0:1]} Kf7 {[%emt 0:0:0]} 67. Nxf5 Kg6 68. Ne3 {[%emt 0:0:20]} Nxd4 {[%emt 0:0:1]} 69. f5+ {[%emt 0:0:48]
} Nxf5 {[%emt 0:0:16]} 70. Nxd5 {[%emt 0:0:2]} Bc7 {[%emt 0:0:0]} 71. Ke2 {[%emt 0:0:19]} Bd6 {[%emt 0:0:4]} 72. Rd1 {[%emt 0:0:3]} Re8 {[%emt 0:0:6]} 73. Bf2 {[%emt 0:0:6]} e3 {[%emt 0:0:6]} 74. Be1 {[%emt 0:0:7]
} Bxg3 {[%emt 0:0:22]} 75. Rb4 {[%emt 0:0:22]} Re4 {[%emt 0:0:0]} 76. Bxg3 {[%emt 0:0:13]} Nxg3+ {[%emt 0:0:2]} 77. Kf3 {[%emt 0:0:1]} e2 {[%emt 0:0:10]} 78. Re1 {[%emt 0:0:2]} Rce6 {[%emt 0:0:22]} 79. Kxg3 {[%emt 0:0:4]
} Kf5 {[%emt 0:0:3]} 80. Kf3 {[%emt 0:0:10]} Rxh4 {[%emt 0:0:0]} 81. Rxe2 {[%emt 0:0:21]} Rh3+ {[%emt 0:0:13]} 82. Kg2 {[%emt 0:0:1]} Rxe2+ {[%emt 0:0:3]} 83. Kxh3 {[%emt 0:0:1]} Ra2 {[%emt 0:0:5]} 84. Rxb7 {[%emt 0:0:8]} Rxa5 {[%emt 0:0:1]} 85. Rb6 {[%emt 0:0:5]} Ke5 {[%emt 0:0:0]} 86. Nc7 {[%emt 0:0:20]} Ra3 {[%emt 0:0:14]} 87. Nxa6 {[%emt 0:0:2]} f5 {[%emt 0:0:1]} 88. c5 {[%emt 0:0:22]} Kf4 {[%emt 0:0:25]} 89. c6 {[%emt 0:0:6]
} 1-0

[Event "FIDE World Rapid-ch Open 2018"]
[White "Grachev, Boris"]
[Black "Gareyev, Timur"]
[Site "St. Petersburg"]
[Round "5.33"]
[Annotator "RC"]
[Result "1/2-1/2"]
[Date "2018.12.26"]
[WhiteElo "2626"]
[BlackElo "2569"]
[PlyCount "130"]
[TimeControl "900+10"]

1. Nf3 {[%emt 0:0:0]} Nf6 {[%emt 0:0:7]} 2. c4 {[%emt 0:0:0]} g6 {[%emt 0:0:23]
} 3. Nc3 {[%emt 0:0:4]} Bg7 {[%emt 0:0:1]} 4. g3 {[%emt 0:0:0]} 0-0 {[%emt 0:0:4]} 5. Bg2 {[%emt 0:0:2]} c6 {[%emt 0:0:2]} 6. e4 {[%emt 0:0:43]
} d5 {[%emt 0:0:4]} 7. cxd5 {[%emt 0:0:8]} cxd5 {[%emt 0:0:0]} 8. e5 {[%emt 0:0:2]} Ne4 {[%emt 0:0:7]} 9. 0-0 {[%emt 0:0:27]} Nc6 {[%emt 0:0:11]
} 10. d4 {[%emt 0:0:11]} Bf5 {[%emt 0:0:25]} 11. Nh4 {[%emt 0:0:0]} Nxc3 {[%emt 0:2:34]} 12. bxc3 {[%emt 0:0:2]} Bc8 {[%emt 0:0:57]} 13. Qb3 {[%emt 0:1:10]} e6 {[%emt 0:0:16]} 14. Nf3 {[%emt 0:0:3]} b6 {[%emt 0:0:24]
} 15. h4 {[%emt 0:0:38]} Ba6 {[%emt 0:0:37]} 16. Re1 {[%emt 0:0:0]} h6 {[%emt 0:0:44]} 17. Qd1 {[%emt 0:0:28]} Rc8 {[%emt 0:0:20]} 18. Nh2 {[%emt 0:0:53]} Ne7 {[%emt 0:0:15]} 19. Bd2 {[%emt 0:2:15]} Nf5 {[%emt 0:0:13]
} 20. Ng4 {[%emt 0:0:42]} Qe7 {[%emt 0:0:29]} 21. a4 {[%emt 0:0:0]} Bc4 {[%emt 0:0:34]} 22. Bh3 {[%emt 0:1:42]} Rc6 {[%emt 0:0:1]} 23. Qf3 {[%emt 0:0:52]} h5 {[%emt 0:1:8]} 24. Ne3 {[%emt 0:0:59]} Nxe3 {[%emt 0:1:28]
} 25. Bxe3 {[%emt 0:0:2]} Rfc8 {[%emt 0:0:8]} 26. Bg5 {[%emt 0:0:18]
} Qc7 {[%emt 0:0:30]} 27. Reb1 {[%emt 0:4:29]} Ba6 {[%emt 0:0:0]} 28. Bd2 {[%emt 0:0:2]} Qd8 {[%emt 0:0:1]} 29. Bf1 {[%emt 0:0:34]} Bxf1 {[%emt 0:0:13]} 30. Kxf1 {[%emt 0:0:2]} Rc4 {[%emt 0:0:3]} 31. Kg2 {[%emt 0:0:14]
} f5 {[%emt 0:2:30]} 32. exf6 {[%emt 0:0:9]} Qxf6 {[%emt 0:0:0]} 33. Qxf6 {[%emt 0:0:28]} Bxf6 {[%emt 0:0:2]} 34. a5 {[%emt 0:0:1]} Bd8 {[%emt 0:0:0]} 35. a6 {[%emt 0:0:14]} Bf6 {[%emt 0:0:9]} 36. Rb5 {[%emt 0:1:54]
} Kf7 {[%emt 0:0:15]} 37. Kf1 {[%emt 0:0:2]} Ke7 {[%emt 0:0:0]} 38. Ke2 {[%emt 0:0:1]} Kd7 {[%emt 0:0:2]} 39. Kd3 {[%emt 0:0:1]} Kc6 {[%emt 0:0:11]} 40. Rb3 {[%emt 0:0:8]} e5 {[%emt 0:0:12]} 41. dxe5 {[%emt 0:0:10]
} Bxe5 {[%emt 0:0:1]} 42. Re1 {[%emt 0:0:1]} Kd6 {[%emt 0:0:0]} 43. f4 {[%emt 0:1:9]} Bf6 {[%emt 0:0:1]} 44. Rg1 {[%emt 0:0:12]} Ke6 {[%emt 0:0:33]} 45. g4 {[%emt 0:0:6]} hxg4 {[%emt 0:0:4]} 46. Rxg4 {[%emt 0:0:1]
} Kf5 {[%emt 0:0:12]} 47. Rg2 {[%emt 0:0:0]} R8c5 {[%emt 0:0:0]} 48. Rh2 {[%emt 0:0:2]} d4 {[%emt 0:0:6]} 49. Rb4 {[%emt 0:0:20]} b5 {[%emt 0:2:55]
} 50. cxd4 {[%emt 0:0:14]} Rd5 {[%emt 0:0:25]} 51. Rxc4 {[%emt 0:0:7]
} bxc4+ {[%emt 0:0:1]} 52. Kxc4 {[%emt 0:0:2]} Rxd4+ {[%emt 0:0:1]
} 53. Kb5 {[%emt 0:0:8]} Rd3 {[%emt 0:0:8]} 54. Bb4 {[%emt 0:0:0]} Rb3 {[%emt 0:0:30]} 55. Kc4 {[%emt 0:0:8]} Rb1 {[%emt 0:0:3]} 56. h5 {[%emt 0:0:9]} Ra1 {[%emt 0:0:40]} 57. Kb5 {[%emt 0:0:9]} Rb1 {[%emt 0:0:0]} 58. Kc4 {[%emt 0:0:1]} Ra1 {[%emt 0:0:2]} 59. hxg6 {[%emt 0:0:29]} Rxa6 {[%emt 0:0:19]} 60. Rg2 {[%emt 0:0:12]} Bg7 {[%emt 0:0:11]} 61. Rg5+ {[%emt 0:0:1]
} Kxf4 {[%emt 0:0:4]} 62. Bd2+ {[%emt 0:0:5]} Ke4 {[%emt 0:0:0]} 63. Rg4+ {[%emt 0:0:15]} Kf5 {[%emt 0:0:9]} 64. Rg5+ {[%emt 0:0:4]
} Ke4 {[%emt 0:0:15]} 65. Rg4+ {[%emt 0:0:6]} Ke5 1/2-1/2

[Event "FIDE World Rapid-ch Open 2018"]
[White "Savchenko, Boris"]
[Black "Reshetnikov, Alexey"]
[Site "St. Petersburg"]
[Round "5.34"]
[Annotator "ChessBase"]
[Result "1-0"]
[Date "2018.12.26"]
[WhiteElo "2562"]
[BlackElo "2492"]
[PlyCount "58"]
[TimeControl "900+10"]

1. e4 {[%emt 0:0:0]} e6 {[%emt 0:0:15]} 2. d4 {[%emt 0:0:0]} d5 {[%emt 0:0:0]} 3. Nc3 {[%emt 0:0:2]} dxe4 {[%emt 0:0:9]} 4. Nxe4 {[%emt 0:0:4]} Bd7 {[%emt 0:0:2]} 5. Nf3 {[%emt 0:2:23]} Bc6 {[%emt 0:0:1]} 6. Bd3 {[%emt 0:0:2]
} Nd7 {[%emt 0:0:2]} 7. c3 {[%emt 0:0:14]} Ngf6 {[%emt 0:0:0]} 8. Nxf6+ {[%emt 0:0:4]} Nxf6 {[%emt 0:0:42]} 9. Bf4 {[%emt 0:0:5]} Bxf3 {[%emt 0:4:15]} 10. Qxf3 {[%emt 0:0:4]} c6 {[%emt 0:0:1]} 11. Qh3 {[%emt 0:3:12]
} Bd6 {[%emt 0:0:22]} 12. Bg5 {[%emt 0:0:9]} Qa5 {[%emt 0:0:0]} 13. Bxf6 {[%emt 0:0:43]} gxf6 {[%emt 0:0:4]} 14. 0-0 {[%emt 0:0:17]} Qg5 {[%emt 0:0:22]} 15. b4 {[%emt 0:2:5]} h5 {[%emt 0:0:54]} 16. b5 {[%emt 0:2:40]
} Qg4 {[%emt 0:2:24]} 17. Qe3 {[%emt 0:0:15]} cxb5 {[%emt 0:0:0]} 18. Bxb5+ {[%emt 0:0:54]} Ke7 {[%emt 0:0:18]} 19. f4 {[%emt 0:0:14]} Rac8 {[%emt 0:0:16]} 20. Be2 {[%emt 0:1:31]} Qf5 {[%emt 0:0:11]} 21. c4 {[%emt 0:0:5]
} b6 {[%emt 0:0:13]} 22. a4 {[%emt 0:0:11]} h4 {[%emt 0:2:34]} 23. a5 {[%emt 0:0:7]} Rhd8 {[%emt 0:0:15]} 24. axb6 {[%emt 0:1:39]} axb6 {[%emt 0:0:2]
} 25. Rab1 {[%emt 0:0:7]} Bc7 {[%emt 0:0:10]} 26. Rb5 {[%emt 0:1:52]
} Qc2 {[%emt 0:1:5]} 27. f5 {[%emt 0:0:4]} Rxd4 {[%emt 0:0:0]} 28. Qxd4 {[%emt 0:0:11]} Qxe2 {[%emt 0:0:1]} 29. fxe6 {[%emt 0:0:14]} Rd8 1-0

[Event "FIDE World Rapid-ch Open 2018"]
[White "Indjic, Aleksandar"]
[Black "Bocharov, Ivan"]
[Site "St. Petersburg"]
[Round "5.35"]
[Annotator "RC"]
[Result "1/2-1/2"]
[Date "2018.12.26"]
[WhiteElo "2620"]
[BlackElo "2563"]
[PlyCount "78"]
[TimeControl "900+10"]

1. d4 {[%emt 0:0:0]} d5 {[%emt 0:0:0]} 2. c4 {[%emt 0:0:0]} c6 {[%emt 0:0:0]} 3. Nf3 {[%emt 0:0:1]} Nf6 {[%emt 0:0:0]} 4. Nc3 {[%emt 0:0:4]} dxc4 {[%emt 0:0:0]} 5. a4 {[%emt 0:0:4]} Bf5 {[%emt 0:0:0]} 6. e3 {[%emt 0:0:3]
} e6 {[%emt 0:0:0]} 7. Bxc4 {[%emt 0:0:4]} Bb4 {[%emt 0:0:0]} 8. 0-0 {[%emt 0:0:6]} Nbd7 {[%emt 0:0:2]} 9. h3 {[%emt 0:0:3]} Ne4 {[%emt 0:0:40]
} 10. Bd3 {[%emt 0:0:59]} Ndf6 {[%emt 0:2:24]} 11. Qc2 {[%emt 0:0:19]
} Nxc3 {[%emt 0:1:55]} 12. bxc3 {[%emt 0:0:23]} Bxd3 {[%emt 0:0:0]} 13. Qxd3 {[%emt 0:0:4]} Be7 {[%emt 0:0:2]} 14. e4 {[%emt 0:0:22]} 0-0 {[%emt 0:0:8]} 15. c4 {[%emt 0:0:19]} Qc7 {[%emt 0:0:55]} 16. e5 {[%emt 0:0:26]
} Nd7 {[%emt 0:0:11]} 17. Bg5 {[%emt 0:0:27]} Rfe8 {[%emt 0:0:0]} 18. Bxe7 {[%emt 0:0:5]} Rxe7 {[%emt 0:0:0]} 19. Ng5 {[%emt 0:0:1]} f5 {[%emt 0:0:2]} 20. f4 {[%emt 0:2:54]} Rd8 {[%emt 0:0:12]} 21. Qc3 {[%emt 0:3:13]
} Nf8 {[%emt 0:0:19]} 22. Rfd1 {[%emt 0:0:29]} h6 {[%emt 0:0:0]} 23. Nf3 {[%emt 0:0:2]} Ng6 {[%emt 0:0:0]} 24. g3 {[%emt 0:0:49]} Red7 {[%emt 0:0:1]} 25. c5 {[%emt 0:0:16]} Ne7 {[%emt 0:0:31]} 26. a5 {[%emt 0:0:0]} Nd5 {[%emt 0:0:7]} 27. Qb3 {[%emt 0:0:2]} Kh8 {[%emt 0:1:1]} 28. Kf2 {[%emt 0:0:7]} a6 {[%emt 0:1:40]} 29. h4 {[%emt 0:0:9]} Rg8 {[%emt 0:0:0]} 30. h5 {[%emt 0:0:51]} Qd8 {[%emt 0:0:8]} 31. Rh1 {[%emt 0:0:51]} g5 {[%emt 0:0:10]} 32. hxg6 {[%emt 0:0:58]} Rxg6 {[%emt 0:0:1]} 33. Rh3 {[%emt 0:0:7]
} Kg8 {[%emt 0:1:0]} 34. Nd2 {[%emt 0:0:21]} Rdg7 {[%emt 0:0:0]} 35. Nf3 {[%emt 0:0:34]} Kf8 {[%emt 0:2:0]} 36. Ra2 {[%emt 0:1:50]} Ke8 {[%emt 0:0:30]} 37. Ra1 {[%emt 0:0:1]} Kf8 {[%emt 0:0:1]} 38. Ra2 {[%emt 0:0:24]
} Ke8 {[%emt 0:0:1]} 39. Ra1 {[%emt 0:1:57]} Kf8 {[%emt 0:0:0]} 1/2-1/2

[Event "FIDE World Rapid-ch Open 2018"]
[White "Hovhannisyan, Robert"]
[Black "Najer, Evgeniy"]
[Site "St. Petersburg"]
[Round "5.36"]
[Annotator "RC"]
[Result "1-0"]
[Date "2018.12.26"]
[WhiteElo "2637"]
[BlackElo "2670"]
[PlyCount "73"]
[TimeControl "900+10"]

1. e4 {[%emt 0:0:0]} c5 {[%emt 0:0:0]} 2. Nf3 {[%emt 0:0:0]} d6 {[%emt 0:0:0]} 3. d4 {[%emt 0:0:0]} cxd4 {[%emt 0:0:0]} 4. Nxd4 {[%emt 0:0:0]} Nf6 {[%emt 0:0:0]} 5. Nc3 {[%emt 0:0:0]} a6 {[%emt 0:0:0]} 6. Be2 {[%emt 0:0:4]
} e5 {[%emt 0:0:3]} 7. Nf3 {[%emt 0:0:2]} Be7 {[%emt 0:0:28]
} 8. Bg5 {[%emt 0:0:5]} 0-0 {[%emt 0:0:18]} 9. Bxf6 {[%emt 0:0:46]} Bxf6 {[%emt 0:0:2]
} 10. Nd5 {[%emt 0:0:18]} Nd7 {[%emt 0:0:21]} 11. 0-0 {[%emt 0:0:0]} Nc5 {[%emt 0:0:7]} 12. Nd2 {[%emt 0:1:54]} Bg5 {[%emt 0:3:1]} 13. b4 {[%emt 0:1:16]} Bxd2 {[%emt 0:0:14]} 14. bxc5 {[%emt 0:0:2]} Ba5 {[%emt 0:0:2]
} 15. cxd6 {[%emt 0:0:27]} Qxd6 {[%emt 0:0:3]} 16. Rb1 {[%emt 0:0:48]
} Rd8 {[%emt 0:0:47]} 17. Rb3 {[%emt 0:1:27]} Qc5 {[%emt 0:0:0]} 18. c4 {[%emt 0:1:58]} Rb8 {[%emt 0:0:46]} 19. Bg4 {[%emt 0:1:24]} Be6 {[%emt 0:2:0]} 20. Rg3 {[%emt 0:0:58]} Bxd5 {[%emt 0:0:2]} 21. cxd5 {[%emt 0:0:4]
} Bb6 {[%emt 0:1:12]} 22. Qd2 {[%emt 0:0:19]} Qe7 {[%emt 0:0:0]} 23. Rb3 {[%emt 0:2:28]} Rd6 {[%emt 0:0:8]} 24. g3 {[%emt 0:0:16]} g6 {[%emt 0:0:13]
} 25. h4 {[%emt 0:0:16]} Bd4 {[%emt 0:0:33]} 26. Kg2 {[%emt 0:0:0]} Rf8 {[%emt 0:0:3]} 27. Rf3 {[%emt 0:1:17]} Rb6 {[%emt 0:0:16]} 28. h5 {[%emt 0:0:12]} Kg7 {[%emt 0:0:48]} 29. Rh1 {[%emt 0:1:0]} g5 {[%emt 0:0:0]} 30. h6+ {[%emt 0:0:53]} Kh8 {[%emt 0:1:38]} 31. Rh5 {[%emt 0:0:10]} Rg8 {[%emt 0:0:20]} 32. Qc1 {[%emt 0:0:14]} Rd6 {[%emt 0:2:14]} 33. Rf5 {[%emt 0:0:9]
} f6 {[%emt 0:0:24]} 34. Rf3 {[%emt 0:0:2]} b6 {[%emt 0:0:17]
} 35. Be6 {[%emt 0:0:10]} Rf8 {[%emt 0:0:17]} 36. Rxg5 {[%emt 0:0:32]} fxg5 {[%emt 0:0:20]} 37. Qxg5 {[%emt 0:0:1]} 1-0

[Event "FIDE World Rapid-ch Open 2018"]
[White "Alekseev, Evgeny"]
[Black "Usmanov, Vasily"]
[Site "St. Petersburg"]
[Round "5.37"]
[Annotator "RC"]
[Result "1-0"]
[Date "2018.12.26"]
[WhiteElo "2639"]
[BlackElo "2450"]
[PlyCount "139"]
[TimeControl "900+10"]

1. Nf3 {[%emt 0:0:0]} d5 {[%emt 0:0:0]} 2. e3 {[%emt 0:0:0]} c5 {[%emt 0:0:0]} 3. c4 {[%emt 0:1:35]} d4 {[%emt 0:0:25]} 4. exd4 {[%emt 0:0:13]} cxd4 {[%emt 0:0:3]} 5. b4 {[%emt 0:0:24]} f6 {[%emt 0:0:2]} 6. c5 {[%emt 0:2:38]
} e5 {[%emt 0:0:11]} 7. Bc4 {[%emt 0:0:7]} a5 {[%emt 0:4:1]} 8. Qb3 {[%emt 0:3:54]} Nh6 {[%emt 0:0:7]} 9. d3 {[%emt 0:0:13]} axb4 {[%emt 0:0:40]
} 10. Bxh6 {[%emt 0:0:8]} gxh6 {[%emt 0:0:4]} 11. Nbd2 {[%emt 0:0:34]
} Nc6 {[%emt 0:0:59]} 12. Ne4 {[%emt 0:0:20]} Ra3 {[%emt 0:0:0]} 13. Qd1 {[%emt 0:0:36]} f5 {[%emt 0:0:51]} 14. Ng3 {[%emt 0:0:36]} Qf6 {[%emt 0:0:24]} 15. 0-0 {[%emt 0:0:21]} Bxc5 {[%emt 0:0:22]} 16. Re1 {[%emt 0:0:16]
} Kd8 {[%emt 0:0:15]} 17. Bb3 {[%emt 0:0:53]} Re8 {[%emt 0:0:0]} 18. Nd2 {[%emt 0:0:16]} b6 {[%emt 0:1:45]} 19. Rc1 {[%emt 0:0:22]} Ra7 {[%emt 0:0:25]} 20. Nc4 {[%emt 0:0:24]} Rae7 {[%emt 0:0:18]} 21. Qf3 {[%emt 0:0:35]
} Qg6 {[%emt 0:1:40]} 22. Ba4 {[%emt 0:1:55]} e4 {[%emt 0:0:0]} 23. Qf4 {[%emt 0:0:1]} Bd7 {[%emt 0:0:54]} 24. Bxc6 {[%emt 0:1:6]} Qxc6 {[%emt 0:0:47]} 25. Nxf5 {[%emt 0:0:20]} Bxf5 {[%emt 0:0:2]} 26. Qxf5 {[%emt 0:0:2]} exd3 {[%emt 0:0:21]} 27. Rxe7 {[%emt 0:1:13]} Rxe7 {[%emt 0:0:0]} 28. Qxd3 {[%emt 0:0:12]} Qe4 {[%emt 0:0:5]} 29. Nb2 {[%emt 0:0:22]} Qe2 {[%emt 0:0:23]} 30. Qb1 {[%emt 0:0:9]} Qe4 {[%emt 0:1:30]} 31. Nd3 {[%emt 0:0:2]
} Rg7 {[%emt 0:0:9]} 32. g3 {[%emt 0:0:2]} Re7 {[%emt 0:0:0]} 33. Qb3 {[%emt 0:0:5]} Qe6 {[%emt 0:0:15]} 34. Qa4 {[%emt 0:0:5]} Rc7 {[%emt 0:0:9]} 35. Re1 {[%emt 0:0:5]} Qc6 {[%emt 0:0:6]} 36. Qb3 {[%emt 0:0:7]
} Kc8 {[%emt 0:0:2]} 37. Re6 {[%emt 0:0:13]} Qb5 {[%emt 0:0:0]} 38. Re5 {[%emt 0:0:31]} Kb8 {[%emt 0:0:4]} 39. h4 {[%emt 0:0:5]} Qd7 {[%emt 0:0:12]} 40. Re6 {[%emt 0:0:6]} Qf7 {[%emt 0:0:5]} 41. Ne5 {[%emt 0:0:8]
} Qf8 {[%emt 0:0:21]} 42. Qd5 {[%emt 0:0:7]} d3 {[%emt 0:0:0]} 43. Nxd3 {[%emt 0:0:8]} Ka7 {[%emt 0:0:16]} 44. Qe4 {[%emt 0:0:12]} Qa8 {[%emt 0:0:14]} 45. Qe5 {[%emt 0:0:16]} Qd8 {[%emt 0:0:9]} 46. Qe4 {[%emt 0:0:5]
} Qd4 {[%emt 0:0:8]} 47. Qxd4 {[%emt 0:0:11]} Bxd4 {[%emt 0:0:0]} 48. Nxb4 {[%emt 0:0:1]} Rc1+ {[%emt 0:0:19]} 49. Kg2 {[%emt 0:0:1]
} Kb7 {[%emt 0:0:13]} 50. Rxh6 {[%emt 0:0:6]} Rd1 {[%emt 0:0:10]} 51. Rxh7+ {[%emt 0:0:3]} Kc8 {[%emt 0:0:1]} 52. Rf7 {[%emt 0:0:16]} Rd2 {[%emt 0:0:0]} 53. h5 {[%emt 0:0:7]} Bc5 {[%emt 0:0:6]} 54. a3 {[%emt 0:0:6]} Rd6 {[%emt 0:0:5]
} 55. g4 Kd8 56. g5 {[%emt 0:0:21]} Ke8 {[%emt 0:0:1]} 57. Rf5 {[%emt 0:0:2]} Rd4 {[%emt 0:0:6]} 58. h6 {[%emt 0:0:9]} Rh4 {[%emt 0:0:0]} 59. f4 {[%emt 0:0:12]} Kd7 {[%emt 0:0:1]} 60. Kg3 {[%emt 0:0:25]} Rh1 {[%emt 0:0:2]} 61. Rf7+ {[%emt 0:0:10]} Ke8 {[%emt 0:0:6]} 62. Rf6 {[%emt 0:0:3]
} Bd4 {[%emt 0:0:4]} 63. Re6+ {[%emt 0:0:14]} Kf7 {[%emt 0:0:0]} 64. Rc6 {[%emt 0:0:4]} Bc5 {[%emt 0:0:45]} 65. Kg4 {[%emt 0:0:11]} Ra1 {[%emt 0:0:17]} 66. g6+ {[%emt 0:0:12]} Ke7 {[%emt 0:0:10]} 67. g7 {[%emt 0:0:0]} Rg1+ {[%emt 0:0:44]} 68. Kf5 {[%emt 0:0:2]} Bd4 {[%emt 0:0:14]} 69. Rg6 {[%emt 0:0:6]} Kf7 {[%emt 0:0:7]} 70. g8=Q+ {[%emt 0:0:6]} 1-0